[Event "Titled Tuesday Blitz July 18 Early 2023"]
[White "Zaragatski, Ilja"]
[Black "Mmukka"]
[WhiteFideId "4655192"]
[WhiteElo "2608"]
[BlackElo "2497"]
[Result "0-1"]
[Round "10"]
[TimeControl "180+2"]
[Date "2023.07.18"]
[WhiteClock "0:00:04"]
[BlackClock "0:00:04"]
[Board "61"]

1. e4 {[%clk 0:03:00]}  c5 {[%clk 0:02:58]} 2. Nf3 {[%clk 0:02:56]}  e6 {[%clk 0:02:57]} 3. d4 {[%clk 0:02:56]}  cxd4 {[%clk 0:02:57]} 4. Nxd4 {[%clk 0:02:57]}  a6 {[%clk 0:02:58]} 5. Bd3 {[%clk 0:02:54]}  Bc5 {[%clk 0:02:58]} 6. Nb3 {[%clk 0:02:53]}  Ba7 {[%clk 0:02:58]} 7. O-O {[%clk 0:02:48]}  Nc6 {[%clk 0:02:55]} 8. Qe2 {[%clk 0:02:47]}  Nge7 {[%clk 0:02:53]} 9. Be3 {[%clk 0:02:47]}  d6 {[%clk 0:02:51]} 10. Nc3 {[%clk 0:02:44]}  Qc7 {[%clk 0:02:50]} 11. Bxa7 {[%clk 0:02:38]}  Rxa7 {[%clk 0:02:50]} 12. f4 {[%clk 0:02:37]}  O-O {[%clk 0:02:46]} 13. Rf3 {[%clk 0:02:36]}  b5 {[%clk 0:02:42]} 14. Rg3 {[%clk 0:02:31]}  f5 {[%clk 0:02:07]} 15. Kh1 {[%clk 0:02:21]}  g6 {[%clk 0:01:40]} 16. Rf1 {[%clk 0:02:20]}  Bd7 {[%clk 0:01:36]} 17. exf5 {[%clk 0:02:11]}  Nxf5 {[%clk 0:01:36]} 18. Rh3 {[%clk 0:02:11]}  Ncd4 {[%clk 0:01:24]} 19. Nxd4 {[%clk 0:02:06]}  Nxd4 {[%clk 0:01:24]} 20. Qe3 {[%clk 0:02:03]}  Nf5 {[%clk 0:01:20]} 21. Qe1 {[%clk 0:01:55]}  Raa8 {[%clk 0:01:15]} 22. Ne4 {[%clk 0:01:55]}  Rae8 {[%clk 0:01:10]} 23. Ng5 {[%clk 0:01:54]}  Re7 {[%clk 0:01:06]} 24. c3 {[%clk 0:01:33]}  Bc6 {[%clk 0:01:00]} 25. Be4 {[%clk 0:01:31]}  Bd7 {[%clk 0:00:46]} 26. Rd3 {[%clk 0:01:29]}  e5 {[%clk 0:00:40]} 27. fxe5 {[%clk 0:01:07]}  Rxe5 {[%clk 0:00:38]} 28. Bd5+ {[%clk 0:00:46]}  Kg7 {[%clk 0:00:35]} 29. Qc1 {[%clk 0:00:43]}  h6 {[%clk 0:00:31]} 30. Nf3 {[%clk 0:00:43]}  Re7 {[%clk 0:00:27]} 31. Rdd1 {[%clk 0:00:41]}  Ne3 {[%clk 0:00:24]} 32. Rfe1 {[%clk 0:00:39]}  Nxd5 {[%clk 0:00:22]} 33. Rxd5 {[%clk 0:00:38]}  Bc6 {[%clk 0:00:21]} 34. Rd3 {[%clk 0:00:32]}  Bxf3 {[%clk 0:00:17]} 35. Rxf3 {[%clk 0:00:31]}  Rxf3 {[%clk 0:00:16]} 36. gxf3 {[%clk 0:00:32]}  Qb7 {[%clk 0:00:14]} 37. Kg2 {[%clk 0:00:31]}  Rxe1 {[%clk 0:00:12]} 38. Qxe1 {[%clk 0:00:31]}  Qf7 {[%clk 0:00:12]} 39. a3 {[%clk 0:00:29]}  h5 {[%clk 0:00:12]} 40. Qe4 {[%clk 0:00:28]}  Qb3 {[%clk 0:00:08]} 41. Qd4+ {[%clk 0:00:27]}  Kh6 {[%clk 0:00:07]} 42. Qd2+ {[%clk 0:00:27]}  Kg7 {[%clk 0:00:06]} 43. Qe2 {[%clk 0:00:28]}  Qf7 {[%clk 0:00:06]} 44. Qd1 {[%clk 0:00:23]}  Qf6 {[%clk 0:00:05]} 45. Qd5 {[%clk 0:00:16]}  Qf4 {[%clk 0:00:04]} 46. Qb7+ {[%clk 0:00:04]}  Kh6 {[%clk 0:00:04]} 47. Qxa6 {[%clk 0:00:04]}  Qd2+ {[%clk 0:00:04]} 48. Kg3 {[%clk 0:00:04]}  h4+ {[%clk 0:00:03]} 49. Kg4 {[%clk 0:00:02]}  Qg5+ {[%clk 0:00:03]} 50. Kh3 {[%clk 0:00:02]}  Qf5+ {[%clk 0:00:03]} 51. Kg2 {[%clk 0:00:02]}  Qc2+ {[%clk 0:00:03]} 52. Kh3 {[%clk 0:00:03]}  Qf5+ {[%clk 0:00:03]} 53. Kxh4 {[%clk 0:00:03]}  Qf4+ {[%clk 0:00:03]} 54. Kh3 {[%clk 0:00:03]}  Qxf3+ {[%clk 0:00:04]} 55. Kh4 {[%clk 0:00:04]}  g5# {[%clk 0:00:04]} 0-1


[Site "https://www.chess.com"]

[Event "Titled Tuesday Blitz July 18 Early 2023"]
[White "Skliarov, Viktor"]
[Black "Taboas Rodriguez, Daniel"]
[WhiteFideId "14106736"]
[BlackFideId "2208466"]
[WhiteElo "2595"]
[BlackElo "2493"]
[Result "1-0"]
[Round "10"]
[TimeControl "180+2"]
[Date "2023.07.18"]
[WhiteClock "0:01:00"]
[BlackClock "0:00:31"]
[Board "63"]

1. e4 {[%clk 0:03:00]}  e5 {[%clk 0:03:00]} 2. Nc3 {[%clk 0:03:00]}  Nf6 {[%clk 0:02:59]} 3. Bc4 {[%clk 0:03:00]}  Nxe4 {[%clk 0:02:59]} 4. Qh5 {[%clk 0:03:00]}  Nd6 {[%clk 0:02:59]} 5. Bb3 {[%clk 0:03:00]}  Be7 {[%clk 0:02:58]} 6. Qxe5 {[%clk 0:03:00]}  O-O {[%clk 0:02:56]} 7. d4 {[%clk 0:03:00]}  Bf6 {[%clk 0:02:55]} 8. Qf4 {[%clk 0:03:00]}  Nc6 {[%clk 0:02:54]} 9. Nge2 {[%clk 0:03:00]}  Na5 {[%clk 0:02:28]} 10. Nd5 {[%clk 0:02:53]}  Ne8 {[%clk 0:02:28]} 11. Ng3 {[%clk 0:02:25]}  Nxb3 {[%clk 0:02:25]} 12. axb3 {[%clk 0:02:25]}  c6 {[%clk 0:02:25]} 13. Nxf6+ {[%clk 0:02:15]}  Qxf6 {[%clk 0:02:24]} 14. Qxf6 {[%clk 0:02:08]}  Nxf6 {[%clk 0:02:25]} 15. Bg5 {[%clk 0:02:08]}  Nd5 {[%clk 0:02:16]} 16. c4 {[%clk 0:02:08]}  Nb4 {[%clk 0:02:14]} 17. Kd2 {[%clk 0:02:07]}  Na6 {[%clk 0:01:56]} 18. Be7 {[%clk 0:01:42]}  Re8 {[%clk 0:01:56]} 19. Bd6 {[%clk 0:01:39]}  Re6 {[%clk 0:01:48]} 20. Rhe1 {[%clk 0:01:33]}  f6 {[%clk 0:01:44]} 21. d5 {[%clk 0:01:31]}  Rxd6 {[%clk 0:01:39]} 22. Nf5 {[%clk 0:01:30]}  Re6 {[%clk 0:01:17]} 23. dxe6 {[%clk 0:01:30]}  dxe6 {[%clk 0:01:18]} 24. Ne7+ {[%clk 0:01:24]}  Kf7 {[%clk 0:01:18]} 25. Nxc8 {[%clk 0:01:25]}  Rxc8 {[%clk 0:01:19]} 26. Kc3 {[%clk 0:01:25]}  c5 {[%clk 0:01:15]} 27. Red1 {[%clk 0:01:24]}  Ke7 {[%clk 0:01:12]} 28. Rd3 {[%clk 0:01:17]}  Nb4 {[%clk 0:01:07]} 29. Rxa7 {[%clk 0:01:16]}  Nxd3 {[%clk 0:01:00]} 30. Rxb7+ {[%clk 0:01:16]}  Kd6 {[%clk 0:00:59]} 31. Kxd3 {[%clk 0:01:16]}  Rg8 {[%clk 0:00:51]} 32. b4 {[%clk 0:01:14]}  cxb4 {[%clk 0:00:48]} 33. Rxb4 {[%clk 0:01:14]}  h5 {[%clk 0:00:49]} 34. Rb7 {[%clk 0:01:08]}  g5 {[%clk 0:00:48]} 35. b4 {[%clk 0:01:09]}  Ra8 {[%clk 0:00:47]} 36. c5+ {[%clk 0:01:04]}  Kd5 {[%clk 0:00:45]} 37. Rd7+ {[%clk 0:01:02]}  Kc6 {[%clk 0:00:40]} 38. Rd6+ {[%clk 0:01:02]}  Kb5 {[%clk 0:00:40]} 39. Rb6+ {[%clk 0:01:02]}  Ka4 {[%clk 0:00:41]} 40. Kc4 {[%clk 0:01:01]}  e5 {[%clk 0:00:31]} 41. Rxf6 {[%clk 0:01:00]} 1-0


[Site "https://www.chess.com"]

[Event "Titled Tuesday Blitz July 18 Early 2023"]
[White "Colas, Joshua"]
[Black "Martin Barcelo, Carles"]
[WhiteFideId "2044447"]
[BlackFideId "24561444"]
[WhiteElo "2592"]
[BlackElo "2474"]
[Result "1-0"]
[Round "10"]
[TimeControl "180+2"]
[Date "2023.07.18"]
[WhiteClock "0:01:28"]
[BlackClock "0:00:12"]
[Board "65"]

1. d4 {[%clk 0:02:56]}  Nf6 {[%clk 0:02:59]} 2. Nc3 {[%clk 0:02:50]}  e6 {[%clk 0:02:48]} 3. Nf3 {[%clk 0:02:35]}  d5 {[%clk 0:02:39]} 4. Bf4 {[%clk 0:02:35]}  Bd6 {[%clk 0:02:38]} 5. e3 {[%clk 0:02:35]}  O-O {[%clk 0:02:38]} 6. Bd3 {[%clk 0:02:35]}  b6 {[%clk 0:02:38]} 7. Ne5 {[%clk 0:02:34]}  c5 {[%clk 0:02:36]} 8. Nb5 {[%clk 0:02:34]}  Bxe5 {[%clk 0:01:55]} 9. Bxe5 {[%clk 0:02:16]}  Nc6 {[%clk 0:01:51]} 10. O-O {[%clk 0:01:55]}  Ba6 {[%clk 0:01:42]} 11. a4 {[%clk 0:01:38]}  Bxb5 {[%clk 0:00:50]} 12. axb5 {[%clk 0:01:35]}  Nxe5 {[%clk 0:00:51]} 13. dxe5 {[%clk 0:01:36]}  Nd7 {[%clk 0:00:52]} 14. f4 {[%clk 0:01:36]}  f5 {[%clk 0:00:50]} 15. exf6 {[%clk 0:01:29]}  Nxf6 {[%clk 0:00:49]} 16. c4 {[%clk 0:01:29]}  Ne4 {[%clk 0:00:45]} 17. Bxe4 {[%clk 0:01:29]}  dxe4 {[%clk 0:00:46]} 18. Qc2 {[%clk 0:01:26]}  Qd3 {[%clk 0:00:46]} 19. Qxd3 {[%clk 0:01:26]}  exd3 {[%clk 0:00:47]} 20. Rfd1 {[%clk 0:01:26]}  Rfd8 {[%clk 0:00:48]} 21. Ra3 {[%clk 0:01:27]}  e5 {[%clk 0:00:41]} 22. Raxd3 {[%clk 0:01:26]}  Rxd3 {[%clk 0:00:41]} 23. Rxd3 {[%clk 0:01:27]}  exf4 {[%clk 0:00:40]} 24. exf4 {[%clk 0:01:27]}  Re8 {[%clk 0:00:40]} 25. b3 {[%clk 0:01:24]}  Re2 {[%clk 0:00:37]} 26. Rd8+ {[%clk 0:01:23]}  Kf7 {[%clk 0:00:37]} 27. Rd7+ {[%clk 0:01:24]}  Kf6 {[%clk 0:00:38]} 28. Rxa7 {[%clk 0:01:24]}  Rb2 {[%clk 0:00:38]} 29. Rb7 {[%clk 0:01:24]}  Rxb3 {[%clk 0:00:37]} 30. Rxb6+ {[%clk 0:01:25]}  Kf5 {[%clk 0:00:38]} 31. Rc6 {[%clk 0:01:23]}  Kxf4 {[%clk 0:00:38]} 32. Rxc5 {[%clk 0:01:24]}  Rb1+ {[%clk 0:00:38]} 33. Kf2 {[%clk 0:01:24]}  Rb2+ {[%clk 0:00:38]} 34. Kf1 {[%clk 0:01:25]}  Rb1+ {[%clk 0:00:38]} 35. Ke2 {[%clk 0:01:25]}  Rb2+ {[%clk 0:00:38]} 36. Kd3 {[%clk 0:01:26]}  Rxg2 {[%clk 0:00:38]} 37. b6 {[%clk 0:01:27]}  Rg1 {[%clk 0:00:13]} 38. b7 {[%clk 0:01:27]}  Rd1+ {[%clk 0:00:13]} 39. Kc2 {[%clk 0:01:27]}  Rd8 {[%clk 0:00:12]} 40. Rc8 {[%clk 0:01:28]} 1-0


[Site "https://www.chess.com"]

[Event "Titled Tuesday Blitz July 18 Early 2023"]
[White "Begunov, Konstantin"]
[Black "Parpiev, Isaak"]
[WhiteFideId "4118510"]
[BlackFideId "34281576"]
[WhiteElo "2474"]
[BlackElo "2584"]
[Result "0-1"]
[Round "10"]
[TimeControl "180+2"]
[Date "2023.07.18"]
[WhiteClock "0:00:00"]
[BlackClock "0:00:19"]
[Board "66"]

1. d4 {[%clk 0:02:56]}  Nf6 {[%clk 0:02:58]} 2. c4 {[%clk 0:02:55]}  g6 {[%clk 0:02:58]} 3. f3 {[%clk 0:02:55]}  Bg7 {[%clk 0:02:58]} 4. e4 {[%clk 0:02:55]}  O-O {[%clk 0:02:59]} 5. Nc3 {[%clk 0:02:56]}  d6 {[%clk 0:02:59]} 6. Be3 {[%clk 0:02:56]}  c5 {[%clk 0:02:59]} 7. dxc5 {[%clk 0:02:57]}  dxc5 {[%clk 0:02:59]} 8. Qxd8 {[%clk 0:02:58]}  Rxd8 {[%clk 0:02:59]} 9. Bxc5 {[%clk 0:02:59]}  Nc6 {[%clk 0:03:00]} 10. Nd5 {[%clk 0:02:59]}  Nd7 {[%clk 0:03:00]} 11. Nxe7+ {[%clk 0:02:59]}  Nxe7 {[%clk 0:02:59]} 12. Bxe7 {[%clk 0:03:00]}  Re8 {[%clk 0:02:59]} 13. Ba3 {[%clk 0:03:00]}  f5 {[%clk 0:02:42]} 14. O-O-O {[%clk 0:03:00]}  fxe4 {[%clk 0:02:21]} 15. c5 {[%clk 0:02:55]}  e3 {[%clk 0:02:13]} 16. Bc4+ {[%clk 0:02:51]}  Kh8 {[%clk 0:02:13]} 17. Ne2 {[%clk 0:02:50]}  Ne5 {[%clk 0:02:14]} 18. Bd5 {[%clk 0:02:43]}  Bf5 {[%clk 0:02:01]} 19. Bxb7 {[%clk 0:02:34]}  Rab8 {[%clk 0:01:45]} 20. Be4 {[%clk 0:02:33]}  Bxe4 {[%clk 0:01:33]} 21. fxe4 {[%clk 0:02:32]}  Nc4 {[%clk 0:01:34]} 22. Nd4 {[%clk 0:02:12]}  Nxa3 {[%clk 0:01:28]} 23. bxa3 {[%clk 0:02:13]}  Rxe4 {[%clk 0:01:28]} 24. Nb3 {[%clk 0:01:11]}  Rc4+ {[%clk 0:01:24]} 25. Kb1 {[%clk 0:01:10]}  a5 {[%clk 0:01:21]} 26. a4 {[%clk 0:00:32]}  Rxa4 {[%clk 0:01:18]} 27. c6 {[%clk 0:00:32]}  Rc4 {[%clk 0:01:02]} 28. Rc1 {[%clk 0:00:32]}  Rxc1+ {[%clk 0:00:52]} 29. Rxc1 {[%clk 0:00:32]}  a4 {[%clk 0:00:53]} 30. c7 {[%clk 0:00:32]}  Rc8 {[%clk 0:00:53]} 31. Na5 {[%clk 0:00:25]}  e2 {[%clk 0:00:40]} 32. Re1 {[%clk 0:00:07]}  Bc3 {[%clk 0:00:32]} 33. Rxe2 {[%clk 0:00:08]}  Bxa5 {[%clk 0:00:32]} 34. Re4 {[%clk 0:00:05]}  Bxc7 {[%clk 0:00:30]} 35. Rxa4 {[%clk 0:00:06]}  Bxh2 {[%clk 0:00:31]} 36. Ra7 {[%clk 0:00:05]}  Rc7 {[%clk 0:00:26]} 37. Ra8+ {[%clk 0:00:03]}  Kg7 {[%clk 0:00:26]} 38. a4 {[%clk 0:00:04]}  Bd6 {[%clk 0:00:26]} 39. a5 {[%clk 0:00:05]}  Bc5 {[%clk 0:00:27]} 40. a6 {[%clk 0:00:05]}  h5 {[%clk 0:00:24]} 41. Kc2 {[%clk 0:00:06]}  g5 {[%clk 0:00:20]} 42. Kb3 {[%clk 0:00:07]}  Ba7 {[%clk 0:00:20]} 43. Kb4 {[%clk 0:00:06]}  g4 {[%clk 0:00:19]} 44. Rd8 {[%clk 0:00:00]}  Kg6 {[%clk 0:00:19]} 0-1


[Site "https://www.chess.com"]

[Event "Titled Tuesday Blitz July 18 Early 2023"]
[White "Bendayan Claros, Aaron"]
[Black "Fonseca Manrique, Enrique"]
[WhiteFideId "3803392"]
[BlackFideId "5114330"]
[WhiteElo "2468"]
[BlackElo "2581"]
[Result "0-1"]
[Round "10"]
[TimeControl "180+2"]
[Date "2023.07.18"]
[WhiteClock "0:00:25"]
[BlackClock "0:00:16"]
[Board "67"]

1. d4 {[%clk 0:02:57]}  Nf6 {[%clk 0:02:15]} 2. Nf3 {[%clk 0:02:56]}  g6 {[%clk 0:02:15]} 3. Nbd2 {[%clk 0:02:56]}  d5 {[%clk 0:02:14]} 4. e3 {[%clk 0:02:56]}  Bg7 {[%clk 0:02:15]} 5. b4 {[%clk 0:02:56]}  O-O {[%clk 0:02:12]} 6. c4 {[%clk 0:02:56]}  a5 {[%clk 0:02:09]} 7. b5 {[%clk 0:02:56]}  c5 {[%clk 0:02:06]} 8. Bb2 {[%clk 0:02:56]}  cxd4 {[%clk 0:02:06]} 9. Bxd4 {[%clk 0:02:56]}  Bf5 {[%clk 0:01:50]} 10. Be2 {[%clk 0:02:54]}  Nbd7 {[%clk 0:01:46]} 11. Qb3 {[%clk 0:02:51]}  a4 {[%clk 0:01:45]} 12. Qb2 {[%clk 0:02:51]}  a3 {[%clk 0:01:41]} 13. Qb3 {[%clk 0:02:48]}  Ne4 {[%clk 0:01:32]} 14. Bxg7 {[%clk 0:02:46]}  Kxg7 {[%clk 0:01:32]} 15. O-O {[%clk 0:02:29]}  Ndc5 {[%clk 0:01:22]} 16. Qb4 {[%clk 0:02:21]}  Ra4 {[%clk 0:01:20]} 17. Qb1 {[%clk 0:02:04]}  Nxd2 {[%clk 0:01:20]} 18. Qd1 {[%clk 0:02:04]}  Nxf1 {[%clk 0:01:20]} 19. Qd4+ {[%clk 0:02:01]}  f6 {[%clk 0:01:15]} 20. Qxc5 {[%clk 0:02:01]}  Nxe3 {[%clk 0:01:01]} 21. fxe3 {[%clk 0:01:57]}  dxc4 {[%clk 0:00:55]} 22. Nd4 {[%clk 0:01:55]}  Qc8 {[%clk 0:00:43]} 23. Qxe7+ {[%clk 0:01:54]}  Rf7 {[%clk 0:00:43]} 24. Qd6 {[%clk 0:01:43]}  c3 {[%clk 0:00:34]} 25. Rc1 {[%clk 0:01:40]}  c2 {[%clk 0:00:30]} 26. g4 {[%clk 0:01:11]}  Bxg4 {[%clk 0:00:22]} 27. Rxc2 {[%clk 0:01:11]}  Qd7 {[%clk 0:00:19]} 28. Qf4 {[%clk 0:00:53]}  Bxe2 {[%clk 0:00:19]} 29. Rxe2 {[%clk 0:00:52]}  Re7 {[%clk 0:00:18]} 30. Rf2 {[%clk 0:00:46]}  f5 {[%clk 0:00:18]} 31. Nxf5+ {[%clk 0:00:44]}  gxf5 {[%clk 0:00:18]} 32. Qxa4 {[%clk 0:00:39]}  Re4 {[%clk 0:00:16]} 33. Qxa3 {[%clk 0:00:34]}  Qd1+ {[%clk 0:00:16]} 34. Rf1 {[%clk 0:00:31]}  Rg4+ {[%clk 0:00:15]} 35. Kf2 {[%clk 0:00:24]}  Qd2+ {[%clk 0:00:15]} 36. Kf3 {[%clk 0:00:25]}  Qg2# {[%clk 0:00:16]} 0-1


[Site "https://www.chess.com"]

[Event "Titled Tuesday Blitz July 18 Early 2023"]
[White "Karthik, Advaith"]
[Black "Vlassov, Nikolai"]
[WhiteFideId "30946050"]
[BlackFideId "4103360"]
[WhiteElo "2451"]
[BlackElo "2580"]
[Result "1/2-1/2"]
[Round "10"]
[TimeControl "180+2"]
[Date "2023.07.18"]
[WhiteClock "0:00:13"]
[BlackClock "0:00:05"]
[Board "69"]

1. Nf3 {[%clk 0:03:00]}  c5 {[%clk 0:02:58]} 2. g3 {[%clk 0:02:59]}  Nc6 {[%clk 0:02:57]} 3. d4 {[%clk 0:02:57]}  cxd4 {[%clk 0:02:57]} 4. Nxd4 {[%clk 0:02:57]}  Qa5+ {[%clk 0:02:57]} 5. c3 {[%clk 0:02:55]}  Qh5 {[%clk 0:02:56]} 6. Bg2 {[%clk 0:02:53]}  d5 {[%clk 0:02:55]} 7. Nxc6 {[%clk 0:02:49]}  bxc6 {[%clk 0:02:54]} 8. e4 {[%clk 0:02:49]}  Qxd1+ {[%clk 0:02:50]} 9. Kxd1 {[%clk 0:02:49]}  e6 {[%clk 0:02:50]} 10. Re1 {[%clk 0:02:43]}  Nf6 {[%clk 0:02:49]} 11. Bg5 {[%clk 0:02:42]}  Nxe4 {[%clk 0:02:45]} 12. Bxe4 {[%clk 0:02:42]}  dxe4 {[%clk 0:02:45]} 13. Rxe4 {[%clk 0:02:43]}  Rb8 {[%clk 0:02:41]} 14. b3 {[%clk 0:02:42]}  c5 {[%clk 0:02:38]} 15. Ra4 {[%clk 0:02:35]}  a6 {[%clk 0:02:36]} 16. Be3 {[%clk 0:02:32]}  Bb7 {[%clk 0:02:29]} 17. Ra5 {[%clk 0:02:26]}  Rc8 {[%clk 0:02:26]} 18. Nd2 {[%clk 0:02:24]}  Be7 {[%clk 0:02:21]} 19. Ke2 {[%clk 0:02:19]}  O-O {[%clk 0:02:17]} 20. Rd1 {[%clk 0:02:17]}  Bf6 {[%clk 0:02:16]} 21. Nb1 {[%clk 0:02:12]}  c4 {[%clk 0:02:13]} 22. b4 {[%clk 0:02:11]}  Rfd8 {[%clk 0:02:01]} 23. Rc5 {[%clk 0:01:38]}  Be4 {[%clk 0:01:48]} 24. Rxc8 {[%clk 0:01:34]}  Rxc8 {[%clk 0:01:36]} 25. Bd4 {[%clk 0:01:34]}  Bxd4 {[%clk 0:01:32]} 26. cxd4 {[%clk 0:01:32]}  c3 {[%clk 0:01:28]} 27. Rc1 {[%clk 0:01:33]}  c2 {[%clk 0:01:19]} 28. Nd2 {[%clk 0:01:32]}  Bg6 {[%clk 0:01:16]} 29. Nb3 {[%clk 0:01:30]}  Rc4 {[%clk 0:01:12]} 30. a3 {[%clk 0:01:30]}  Rc3 {[%clk 0:01:08]} 31. Na1 {[%clk 0:01:20]}  Kf8 {[%clk 0:01:07]} 32. Kd2 {[%clk 0:01:19]}  Rd3+ {[%clk 0:01:08]} 33. Kxc2 {[%clk 0:01:18]}  Rxg3+ {[%clk 0:01:03]} 34. Kb2 {[%clk 0:01:17]}  Rg2 {[%clk 0:01:02]} 35. Rc6 {[%clk 0:01:12]}  Rxf2+ {[%clk 0:00:58]} 36. Kb3 {[%clk 0:01:11]}  Bd3 {[%clk 0:00:55]} 37. Kc3 {[%clk 0:01:10]}  Bb5 {[%clk 0:00:52]} 38. Rc8+ {[%clk 0:01:10]}  Ke7 {[%clk 0:00:52]} 39. Rc7+ {[%clk 0:01:01]}  Kf6 {[%clk 0:00:48]} 40. Ra7 {[%clk 0:00:53]}  Rxh2 {[%clk 0:00:46]} 41. Nb3 {[%clk 0:00:52]}  Ra2 {[%clk 0:00:39]} 42. Nc5 {[%clk 0:00:45]}  Rxa3+ {[%clk 0:00:37]} 43. Kb2 {[%clk 0:00:46]}  Rf3 {[%clk 0:00:32]} 44. Nxa6 {[%clk 0:00:46]}  h5 {[%clk 0:00:24]} 45. Nc7 {[%clk 0:00:46]}  Bc6 {[%clk 0:00:20]} 46. b5 {[%clk 0:00:44]}  Be4 {[%clk 0:00:21]} 47. b6 {[%clk 0:00:43]}  Bc6 {[%clk 0:00:19]} 48. Ne8+ {[%clk 0:00:38]}  Kg6 {[%clk 0:00:18]} 49. Rc7 {[%clk 0:00:37]}  Bd5 {[%clk 0:00:18]} 50. Rc5 {[%clk 0:00:32]}  Rb3+ {[%clk 0:00:17]} 51. Kc2 {[%clk 0:00:32]}  Rxb6 {[%clk 0:00:18]} 52. Nc7 {[%clk 0:00:31]}  Rc6 {[%clk 0:00:18]} 53. Nxd5 {[%clk 0:00:29]}  Ra6 {[%clk 0:00:14]} 54. Nf4+ {[%clk 0:00:28]}  Kf6 {[%clk 0:00:13]} 55. Nxh5+ {[%clk 0:00:28]}  Kg6 {[%clk 0:00:14]} 56. Nf4+ {[%clk 0:00:28]}  Kf6 {[%clk 0:00:14]} 57. Kd3 {[%clk 0:00:27]}  g5 {[%clk 0:00:14]} 58. Nh5+ {[%clk 0:00:26]}  Kg6 {[%clk 0:00:14]} 59. Ng3 {[%clk 0:00:24]}  f5 {[%clk 0:00:12]} 60. Ke2 {[%clk 0:00:19]}  g4 {[%clk 0:00:12]} 61. d5 {[%clk 0:00:15]}  exd5 {[%clk 0:00:10]} 62. Rxd5 {[%clk 0:00:14]}  f4 {[%clk 0:00:09]} 63. Ne4 {[%clk 0:00:14]}  Ra2+ {[%clk 0:00:09]} 64. Rd2 {[%clk 0:00:13]}  f3+ {[%clk 0:00:07]} 65. Kf2 {[%clk 0:00:12]}  Rxd2+ {[%clk 0:00:04]} 66. Nxd2 {[%clk 0:00:13]}  Kg5 {[%clk 0:00:05]} 67. Nxf3+ {[%clk 0:00:12]}  gxf3 {[%clk 0:00:05]} 68. Kxf3 {[%clk 0:00:13]} 1/2-1/2


[Site "https://www.chess.com"]

[Event "Titled Tuesday Blitz July 18 Early 2023"]
[White "Mogirzan, Matei-Valeriu"]
[Black "Vivas Zamora, Fabian Ernesto"]
[WhiteFideId "1257455"]
[BlackFideId "3902480"]
[WhiteElo "2570"]
[BlackElo "2440"]
[Result "0-1"]
[Round "10"]
[TimeControl "180+2"]
[Date "2023.07.18"]
[WhiteClock "0:00:19"]
[BlackClock "0:00:03"]
[Board "71"]

1. e4 {[%clk 0:03:00]}  c5 {[%clk 0:02:49]} 2. Nf3 {[%clk 0:02:59]}  d6 {[%clk 0:02:49]} 3. d4 {[%clk 0:02:59]}  cxd4 {[%clk 0:02:50]} 4. Nxd4 {[%clk 0:02:59]}  Nf6 {[%clk 0:02:51]} 5. Nc3 {[%clk 0:03:00]}  g6 {[%clk 0:02:51]} 6. Bc4 {[%clk 0:02:57]}  Bg7 {[%clk 0:02:51]} 7. f3 {[%clk 0:02:57]}  O-O {[%clk 0:02:51]} 8. Be3 {[%clk 0:02:58]}  Nc6 {[%clk 0:02:45]} 9. Qd2 {[%clk 0:02:57]}  Bd7 {[%clk 0:02:44]} 10. O-O-O {[%clk 0:02:50]}  Rc8 {[%clk 0:02:34]} 11. Bb3 {[%clk 0:02:47]}  Nxd4 {[%clk 0:02:28]} 12. Bxd4 {[%clk 0:02:48]}  b5 {[%clk 0:02:28]} 13. Nd5 {[%clk 0:02:38]}  Nxd5 {[%clk 0:02:16]} 14. Bxd5 {[%clk 0:02:31]}  Bxd4 {[%clk 0:01:33]} 15. Qxd4 {[%clk 0:02:31]}  Qc7 {[%clk 0:00:56]} 16. c3 {[%clk 0:02:13]}  Qc5 {[%clk 0:00:41]} 17. Kb1 {[%clk 0:02:00]}  a5 {[%clk 0:00:39]} 18. h4 {[%clk 0:01:57]}  b4 {[%clk 0:00:36]} 19. Qxc5 {[%clk 0:01:55]}  Rxc5 {[%clk 0:00:34]} 20. cxb4 {[%clk 0:01:46]}  axb4 {[%clk 0:00:35]} 21. Rc1 {[%clk 0:01:41]}  Rfc8 {[%clk 0:00:32]} 22. Rxc5 {[%clk 0:01:35]}  Rxc5 {[%clk 0:00:33]} 23. Rc1 {[%clk 0:01:34]}  Bb5 {[%clk 0:00:19]} 24. Rxc5 {[%clk 0:01:29]}  dxc5 {[%clk 0:00:20]} 25. Kc1 {[%clk 0:01:27]}  c4 {[%clk 0:00:14]} 26. Kd2 {[%clk 0:01:21]}  e6 {[%clk 0:00:14]} 27. Bb7 {[%clk 0:01:21]}  Kf8 {[%clk 0:00:14]} 28. a3 {[%clk 0:01:14]}  c3+ {[%clk 0:00:12]} 29. bxc3 {[%clk 0:01:01]}  bxa3 {[%clk 0:00:11]} 30. Kc2 {[%clk 0:00:59]}  Bc4 {[%clk 0:00:12]} 31. Bc6 {[%clk 0:00:54]}  Ke7 {[%clk 0:00:11]} 32. e5 {[%clk 0:00:53]}  h6 {[%clk 0:00:10]} 33. f4 {[%clk 0:00:51]}  f6 {[%clk 0:00:06]} 34. g3 {[%clk 0:00:47]}  g5 {[%clk 0:00:04]} 35. Ba4 {[%clk 0:00:37]}  gxf4 {[%clk 0:00:03]} 36. gxf4 {[%clk 0:00:38]}  fxe5 {[%clk 0:00:03]} 37. fxe5 {[%clk 0:00:39]}  Kd8 {[%clk 0:00:03]} 38. Bb3 {[%clk 0:00:36]}  a2 {[%clk 0:00:03]} 39. Bxc4 {[%clk 0:00:26]}  a1=Q {[%clk 0:00:02]} 40. Bxe6 {[%clk 0:00:27]}  Qe1 {[%clk 0:00:02]} 41. Bf7 {[%clk 0:00:21]}  Qxe5 {[%clk 0:00:03]} 42. Bg6 {[%clk 0:00:19]}  Qh2+ {[%clk 0:00:03]} 0-1


[Site "https://www.chess.com"]